bitfinex-derivatives/quotes_BTCF0:USTF0_20260207
["timestamp","ask_amount","ask_price","bid_price","bid_amount"]
[1770471029177,0.56555618,69358.0,69357.0,0.14255089]
[1770471029475,0.40444105,69358.0,69350.0,0.14725497]
[1770471030477,0.54234617,69380.0,69357.0,0.14110792]
[1770471031082,0.54234617,69380.0,69350.0,0.16168997]
[1770471031381,0.54234617,69380.0,69352.0,0.014434]
[1770471032380,0.54234617,69380.0,69354.0,0.014434]
[1770471032779,0.54234617,69380.0,69356.0,0.014433]
[1770471032972,0.54234617,69380.0,69357.0,0.14310951]
[1770471033179,1.2643083,69397.0,69375.0,0.3379386]
[1770471033380,0.00033077,69396.0,69380.0,0.014428]
[1770471033583,0.54534617,69395.0,69383.0,0.014428]
[1770471033784,0.54567694,69395.0,69377.0,0.3379386]
[1770471034083,0.54567694,69395.0,69368.0,0.014431]
[1770471034084,0.00033077,69395.0,69381.0,0.014428]
[1770471034279,0.00033077,69394.0,69384.0,0.014428]
[1770471034584,0.54534617,69400.0,69384.0,0.014428]
[1770471034980,0.00033077,69399.0,69389.0,0.014426]
[1770471035184,0.00033077,69399.0,69386.0,0.014427]
[1770471035385,0.54534617,69407.0,69386.0,0.014427]
[1770471035587,0.54567694,69406.0,69381.0,0.014428]
[1770471035788,0.54534617,69406.0,69381.0,0.35465592]
[1770471035987,0.54463619,69404.0,69381.0,0.35465592]
[1770471036384,0.54496696,69403.0,69381.0,0.35465592]
[1770471036584,0.54463619,69403.0,69384.0,0.014428]
[1770471036888,0.54496696,69402.0,69387.0,0.014427]
[1770471037086,0.54463619,69402.0,69387.0,0.014427]
[1770471037289,0.00033077,69401.0,69387.0,0.014427]
[1770471037488,0.18472696,69402.0,69387.0,0.014427]
[1770471037888,0.54463619,69416.0,69388.0,0.58537788]
[1770471038086,0.54463619,69415.0,69390.0,0.014426]
[1770471038287,0.54463619,69414.0,69390.0,0.014426]
[1770471038487,0.90483619,69414.0,69393.0,0.014426]
[1770471038687,0.36024,69413.0,69393.0,0.014426]
[1770471038990,0.54463619,69412.0,69390.0,0.014426]
[1770471039193,0.54463619,69411.0,69390.0,0.014426]
[1770471039389,0.90487619,69411.0,69390.0,0.014426]
[1770471039691,0.36024,69410.0,69393.0,0.014426]
[1770471040093,0.36024,69409.0,69393.0,0.014426]
[1770471040392,0.36024,69410.0,69393.0,0.014426]
[1770471040783,0.36024,69409.0,69390.0,0.014426]
[1770471040989,0.54463619,69409.0,69384.0,0.014428]
[1770471041183,0.54463619,69407.0,69384.0,0.58537888]
[1770471041388,0.36024,69408.0,69366.0,0.7726]
[1770471041389,0.0002,69428.0,69404.0,0.57095088]
[1770471041589,0.54483619,69424.0,69405.0,0.014423]
[1770471041788,0.54483619,69424.0,69400.0,0.014424]
[1770471042195,0.54483619,69424.0,69400.0,0.58537488]
[1770471042789,0.54463619,69424.0,69400.0,0.58537488]
[1770471043184,0.54163619,69438.0,69406.0,0.57095088]
[1770471043390,0.54163619,69438.0,69398.0,0.57095088]
[1770471043584,0.54163619,69438.0,69392.0,0.014426]
[1770471043796,0.54463619,69431.0,69404.0,0.14274278]
[1770471043992,0.54463619,69419.0,69384.0,0.57095088]
[1770471044297,0.54463619,69419.0,69378.0,0.014429]
[1770471044492,0.54463619,69419.0,69387.0,0.14109019]
[1770471045597,0.54463619,69419.0,69398.0,0.001]
[1770471046091,0.54463619,69419.0,69380.0,0.1414652]
[1770471046391,0.54463619,69419.0,69388.0,0.57095088]
[1770471046595,0.54463619,69419.0,69388.0,0.58537788]
[1770471047300,0.54463619,69419.0,69388.0,0.57095088]
[1770471049199,0.54463619,69419.0,69387.0,0.14454749]
[1770471050294,0.54463619,69419.0,69388.0,0.001]
[1770471050500,0.54463619,69427.0,69397.0,0.57095088]
[1770471050795,0.54463619,69427.0,69388.0,0.001]
[1770471051006,0.54463619,69427.0,69388.0,0.014427]
[1770471051193,0.54463619,69427.0,69388.0,0.57095088]
[1770471052401,0.54463619,69427.0,69393.0,0.57095088]
[1770471053599,0.54463619,69427.0,69387.0,0.14454749]
[1770471053600,0.54463619,69427.0,69389.0,0.014427]
[1770471053800,0.54463619,69419.0,69387.0,0.14454749]
[1770471054399,0.54463619,69419.0,69388.0,0.014427]
[1770471055201,0.54463619,69419.0,69390.0,0.014426]
[1770471055504,0.54463619,69419.0,69387.0,0.72992537]
[1770471055904,0.54463619,69419.0,69387.0,0.14454749]
[1770471056101,0.57069801,69442.0,69362.0,0.57095088]
[1770471056102,0.54463619,69399.0,69362.0,0.57095088]
[1770471056598,0.54463619,69399.0,69345.0,0.014436]
[1770471056599,0.54463619,69399.0,69357.0,0.014433]
[1770471056798,0.54463619,69399.0,69357.0,0.58538388]
[1770471057508,0.54463619,69399.0,69371.0,0.14467175]
[1770471058006,0.54463619,69399.0,69362.0,0.001]
[1770471058205,0.54463619,69399.0,69362.0,0.14831636]
[1770471058507,0.54463619,69379.0,69335.0,0.014438]
[1770471059003,0.54463619,69379.0,69327.0,0.57095088]
[1770471059205,0.54463619,69375.0,69332.0,0.14299189]
[1770471059704,0.71662817,69380.0,69332.0,0.14299189]
[1770471059705,0.54463619,69369.0,69332.0,0.14299189]
[1770471060201,0.54463619,69369.0,69327.0,0.57095088]
[1770471060401,0.54463619,69368.0,69338.0,0.14255089]
[1770471060903,0.54463619,69368.0,69303.0,0.17854372]
[1770471060904,0.54463619,69359.0,69309.0,0.57095088]
[1770471061204,0.54463619,69359.0,69310.0,0.14309517]
[1770471061603,0.54463619,69354.0,69300.0,0.57095088]
[1770471061807,0.42921052,69355.0,69293.0,0.014447]
[1770471061808,0.54463619,69339.0,69293.0,0.014447]
[1770471062002,0.54463619,69337.0,69310.0,0.001]
[1770471062311,0.54463619,69335.0,69310.0,0.001]
[1770471062505,0.54463619,69333.0,69293.0,0.014447]
[1770471062906,0.54463619,69331.0,69293.0,0.014447]
[1770471063209,0.54463619,69329.0,69302.0,0.1460577]
[1770471063510,0.54463619,69327.0,69295.0,0.14312614]
[1770471063704,0.54463619,69339.0,69303.0,0.57095088]
[1770471063897,0.54463619,69337.0,69302.0,0.14685196]
[1770471064101,0.54463619,69335.0,69302.0,0.14685196]
[1770471064303,0.54463619,69333.0,69302.0,0.14685196]
[1770471064503,0.54463619,69331.0,69302.0,0.14685196]
[1770471064703,0.54463619,69329.0,69302.0,0.14685196]
[1770471064903,0.54463619,69327.0,69302.0,0.14685196]
[1770471065105,0.54463619,69325.0,69302.0,0.14685196]
[1770471065307,0.54463619,69323.0,69302.0,0.14685196]
[1770471065611,0.54463619,69321.0,69302.0,0.14685196]
[1770471065809,0.00010768,69320.0,69302.0,0.14685196]
[1770471066013,0.54463619,69321.0,69302.0,0.14685196]
[1770471066308,0.52587472,69326.0,69302.0,0.14685196]
[1770471066506,0.52587472,69324.0,69302.0,0.14685196]
[1770471066711,0.52587472,69322.0,69302.0,0.14685196]
[1770471066907,0.52587472,69320.0,69302.0,0.14685196]
[1770471067114,0.52587472,69319.0,69295.0,0.14789172]
[1770471067315,0.52587472,69318.0,69295.0,0.14789172]
[1770471067813,0.52587472,69316.0,69295.0,0.14789172]
[1770471068011,0.52587472,69314.0,69281.0,0.53124647]
[1770471068214,0.5937,69354.0,48143.0,0.01660368]
[1770471068215,0.52587472,69312.0,69259.0,0.014454]
[1770471068413,0.52587472,69310.0,69273.0,0.14347501]
[1770471068608,0.52587472,69308.0,69273.0,0.14347501]
[1770471068808,0.52587472,69306.0,69273.0,0.14347501]
[1770471069112,0.52587472,69304.0,69266.0,0.14395177]
[1770471069307,0.52587472,69302.0,69266.0,0.14395177]
[1770471069504,0.52587472,69300.0,69266.0,0.14395177]
[1770471069705,0.52587472,69298.0,69266.0,0.14395177]
[1770471070010,0.52587472,69296.0,69252.0,0.014455]
[1770471070217,0.52587472,69296.0,69264.0,0.14671579]
[1770471070423,0.5284073,69294.0,69251.0,0.5314093]
[1770471070715,0.5284073,69292.0,69251.0,0.5314093]
[1770471070902,0.5284073,69290.0,69251.0,0.5314093]
[1770471071110,0.5284073,69288.0,69251.0,0.5314093]
[1770471071308,0.14593016,69320.0,69260.0,0.1415512]
[1770471071309,0.5284073,69286.0,69260.0,0.1415512]
[1770471071506,0.5284073,69284.0,69260.0,0.1415512]
[1770471071806,0.5284073,69282.0,69253.0,0.14381983]
[1770471072005,0.5284073,69280.0,69253.0,0.14381983]
[1770471072218,0.5284073,69278.0,69253.0,0.14381983]
[1770471072406,0.5284073,69276.0,69253.0,0.14381983]
[1770471072602,0.5284073,69274.0,69253.0,0.14381983]
[1770471072813,0.5284073,69272.0,69253.0,0.14381983]
[1770471073012,0.5284073,69270.0,69253.0,0.14381983]
[1770471073218,0.5284073,69270.0,69251.0,0.00016283]
[1770471073408,0.5284073,69268.0,69242.0,0.52864048]
[1770471073611,0.5284073,69266.0,69242.0,0.14472427]
[1770471073809,0.5284073,69264.0,69242.0,0.14472427]
[1770471074115,0.00013279,69263.0,69242.0,0.14472427]
[1770471074323,0.5284073,69264.0,69242.0,0.14472427]
[1770471074707,0.5284073,69262.0,69242.0,0.14472427]
[1770471075813,0.5284073,69260.0,69242.0,0.14472427]
[1770471076113,0.5284073,69259.0,69234.0,0.54309948]
[1770471077122,0.5284073,69278.0,69251.0,0.54309548]
[1770471077319,0.5284073,69278.0,69251.0,0.52864048]
[1770471077517,0.5284073,69276.0,69251.0,0.52864048]
[1770471078016,0.52856184,69275.0,69251.0,0.52864048]
[1770471078214,0.5284073,69275.0,69251.0,0.52864048]
[1770471078413,0.00015454,69274.0,69251.0,0.54309548]
[1770471078820,0.00015454,69273.0,69251.0,0.54309548]
[1770471079018,0.00015454,69274.0,69251.0,0.54309548]
[1770471079420,0.00015454,69273.0,69251.0,0.54309548]
[1770471079716,0.00015454,69274.0,69251.0,0.52864048]
[1770471079918,0.5284073,69289.0,69249.0,0.014456]
[1770471080215,0.5284073,69287.0,69249.0,0.014456]
[1770471080613,0.5284073,69285.0,69249.0,0.014456]
[1770471081013,0.5284073,69283.0,69249.0,0.014456]
[1770471081415,0.5284073,69281.0,69249.0,0.014456]
[1770471081610,0.5284073,69281.0,69253.0,0.52864048]
[1770471081811,0.52856184,69280.0,69254.0,0.014455]
[1770471082011,0.5284073,69280.0,69254.0,0.54309548]
[1770471082217,0.00015454,69279.0,69254.0,0.54309548]
[1770471082414,0.52856184,69279.0,69254.0,0.54309548]
[1770471082614,0.52856184,69278.0,69254.0,0.54309548]
[1770471082819,0.5284073,69278.0,69254.0,0.54309548]
[1770471083020,0.5284073,69276.0,69254.0,0.54309548]
[1770471083420,0.52856184,69275.0,69254.0,0.52864048]
[1770471083616,0.52856184,69275.0,69253.0,0.014455]
[1770471083617,0.5284073,69275.0,69253.0,0.014455]
[1770471083815,0.5284073,69273.0,69245.0,0.52864048]
[1770471084021,0.5284073,69273.0,69248.0,0.014456]
[1770471084216,0.5284073,69271.0,69248.0,0.014456]
[1770471084716,0.52856184,69270.0,69244.0,0.1409765]
[1770471084912,0.5284073,69270.0,69244.0,0.1409765]
[1770471085221,0.5284073,69312.0,69268.0,0.014452]
[1770471085524,0.5284073,69312.0,69265.0,0.52864048]
[1770471085921,0.5284073,69312.0,69269.0,0.014452]
[1770471086122,0.5284073,69312.0,69265.0,0.52864048]
[1770471086123,0.5284073,69312.0,69268.0,0.014452]
[1770471086524,0.5284073,69312.0,69268.0,0.52864048]
[1770471086723,0.5284073,69312.0,69277.0,0.52864048]
[1770471088026,0.5284073,69312.0,69256.0,0.014454]
[1770471088027,0.5284073,69312.0,69286.0,0.52864048]
[1770471088329,0.5284073,69312.0,69289.0,0.014447]
[1770471089126,0.5284073,69320.0,69289.0,0.52864048]
[1770471089429,0.5284073,69320.0,69296.0,0.52864048]
[1770471090125,0.5284073,69320.0,69297.0,0.54308648]
[1770471090428,0.5284073,69320.0,69297.0,0.52864048]
[1770471091222,0.5284073,69320.0,69279.0,0.52864048]
[1770471091424,0.5284073,69320.0,69279.0,0.54308948]
[1770471091630,0.5284073,69320.0,69282.0,0.014449]
[1770471092525,0.5284073,69320.0,69275.0,0.01445]
[1770471092838,0.5284073,69320.0,69273.0,0.014451]
[1770471093631,0.5284073,69320.0,69276.0,0.01445]
[1770471093825,0.5284073,69320.0,69279.0,0.001]
[1770471094518,0.5284073,69320.0,69272.0,0.014451]
[1770471094724,0.5284073,69320.0,69274.0,0.01445]
[1770471096330,0.53208211,69319.0,69270.0,0.52864048]
[1770471096931,0.53208211,69315.0,69270.0,0.52864048]
[1770471097227,0.53208211,69314.0,69270.0,0.52864048]
[1770471098334,0.53208211,69306.0,69270.0,0.52864048]
[1770471099633,0.53208211,69301.0,69270.0,0.52864048]
[1770471100823,0.53208211,69301.0,69275.0,0.58970387]
[1770471101026,0.53208211,69301.0,69275.0,0.57525387]
[1770471103433,0.53208211,69301.0,69264.0,0.014453]
[1770471103631,0.53208211,69301.0,69261.0,0.57525387]
[1770471103935,0.42921052,69299.0,69253.0,0.57525387]
[1770471104239,0.53208211,69298.0,69253.0,0.57525387]
[1770471104428,0.14623101,69300.0,69253.0,0.57525387]
[1770471104429,0.53208211,69288.0,69253.0,0.57525387]
[1770471104835,0.53208211,69287.0,69253.0,0.57525387]
[1770471105033,0.53208211,69287.0,69245.0,0.57525387]
[1770471105228,0.53208211,69286.0,69245.0,0.57525387]
[1770471106135,0.53208211,69281.0,69244.0,0.1409765]
[1770471106325,0.1446,69297.0,69237.0,0.14762565]
[1770471106326,0.53208211,69275.0,69237.0,0.14762565]
[1770471106523,0.53208211,69275.0,69237.0,0.72287952]
[1770471106729,0.53208211,69275.0,69237.0,0.14762565]
[1770471107236,0.14623101,69280.0,69221.0,0.57525387]
[1770471107237,0.53208211,69266.0,69221.0,0.57525387]
[1770471107433,0.53208211,69259.0,69219.0,0.005]
[1770471107636,0.53208211,69259.0,69217.0,0.14616444]
[1770471107824,0.53208211,69259.0,69213.0,0.57525387]
[1770471108132,0.53208211,69259.0,69189.0,0.0002]
[1770471108133,0.53208211,69239.0,69204.0,0.57525387]
[1770471108937,0.53208211,69239.0,69196.0,0.57525387]
[1770471109435,0.53208211,69219.0,69186.0,0.0002]
[1770471109637,0.53208211,69217.0,69170.0,0.57525387]
[1770471110137,0.53208211,69199.0,69152.0,0.014476]
[1770471110327,0.53208211,69199.0,69162.0,0.0002]
[1770471110527,0.53208211,69199.0,69169.0,0.0002]
[1770471111036,0.53208211,69179.0,69153.0,0.00013212]
[1770471111332,0.53208211,69179.0,69150.0,0.014476]
[1770471111533,0.53208211,69199.0,69160.0,0.57545387]
[1770471111728,0.53208211,69199.0,69160.0,0.58972787]
[1770471111924,0.53208211,69199.0,69167.0,0.57525387]
[1770471112332,0.53208211,69199.0,69152.0,0.14339319]
[1770471112928,0.53208211,69199.0,69168.0,0.0002]
[1770471113330,0.53208211,69199.0,69152.0,0.14339319]
[1770471113524,0.53208211,69199.0,69168.0,0.0002]
[1770471114136,0.53208211,69199.0,69152.0,0.57525387]
[1770471114137,0.53208211,69199.0,69172.0,0.0002]
[1770471114341,0.53308211,69199.0,69172.0,0.0002]
[1770471115333,0.53308211,69199.0,69175.0,0.0002]
[1770471115732,0.53308211,69199.0,69175.0,0.57545387]
[1770471116136,0.001,69199.0,69175.0,0.57545387]
[1770471116336,0.001,69199.0,69194.0,0.0002]
[1770471116540,0.53208211,69208.0,69194.0,0.0002]
[1770471117239,0.53208211,69218.0,69194.0,0.0002]
[1770471117535,0.53208211,69218.0,69191.0,0.0002]
[1770471118240,0.53208211,69239.0,69193.0,0.57525387]
[1770471118544,0.53208211,69239.0,69195.0,0.57525387]
[1770471118840,0.53208211,69239.0,69208.0,0.0002]
[1770471119943,0.53208211,69239.0,69195.0,0.57525387]
[1770471120340,0.53208211,69239.0,69205.0,0.57525387]
[1770471120537,0.53208211,69239.0,69211.0,0.57525387]
[1770471121333,0.53208211,69239.0,69192.0,0.57525387]
[1770471121534,0.53208211,69239.0,69196.0,0.57525387]
[1770471121742,0.53208211,69239.0,69187.0,0.57525387]
[1770471121937,0.53208211,69239.0,69205.0,0.0002]
[1770471122348,0.53208211,69239.0,69188.0,0.58972187]
[1770471122540,0.53208211,69239.0,69188.0,0.57525387]
[1770471123046,0.53208211,69239.0,69185.0,0.014469]
[1770471123746,0.53208211,69239.0,69182.0,0.57525387]
[1770471123946,0.53208211,69239.0,69183.0,0.014469]
[1770471124248,0.53208211,69239.0,69184.0,0.57525387]
[1770471125448,0.53208211,69238.0,69191.0,0.57525387]
[1770471126136,0.52582532,69236.0,69178.0,0.52622631]
[1770471126342,0.52582532,69219.0,69181.0,0.0002]
[1770471127442,0.52582532,69219.0,69168.0,0.54069931]
[1770471128242,0.52582532,69219.0,69168.0,0.52622631]
[1770471128448,0.52582532,69219.0,69173.0,0.0004]
[1770471128842,0.52582532,69219.0,69168.0,0.52622631]
[1770471129237,0.14623101,69220.0,69158.0,0.52622631]
[1770471129238,0.52582532,69199.0,69158.0,0.52622631]
[1770471130636,0.52582532,69199.0,69163.0,0.56584718]
[1770471130842,0.52582532,69199.0,69182.0,0.0002]
[1770471131145,0.52582532,69199.0,69161.0,0.56584718]
[1770471131355,0.52582532,69199.0,69152.0,0.70854575]
[1770471131555,0.52582532,69199.0,69152.0,0.56584718]
[1770471131756,0.52582532,69199.0,69132.0,0.0002]
[1770471131757,0.52582532,69199.0,69146.0,0.56584718]
[1770471132355,0.56602645,69179.0,69144.0,0.0002]
[1770471132550,0.42921052,69200.0,69130.0,0.0002]
[1770471132551,0.56602645,69149.0,69130.0,0.0002]
[1770471132737,0.14623101,69150.0,69122.0,0.0002]
[1770471132738,0.14623101,69150.0,69123.0,0.56584718]
[1770471132945,0.56602645,69159.0,69128.0,0.56584718]
[1770471133241,0.56602645,69159.0,69122.0,0.0002]
[1770471133443,0.56602645,69159.0,69122.0,0.56604718]
[1770471133648,0.56602645,69181.0,69131.0,0.56584718]
[1770471134242,0.56602645,69169.0,69131.0,0.56584718]
[1770471136051,0.56602645,69169.0,69126.0,0.0002]
[1770471136253,0.56602645,69159.0,69126.0,0.0002]
[1770471136442,0.56602645,69159.0,69122.0,0.56584718]
[1770471137647,0.56602645,69159.0,69120.0,0.0002]
[1770471138757,0.56602645,69159.0,69121.0,0.56584718]
[1770471139456,0.56602645,69159.0,69120.0,0.0002]
[1770471139658,0.56602645,69159.0,69120.0,0.56604718]
[1770471140256,0.56602645,69159.0,69120.0,0.0002]
[1770471140450,0.56602645,69159.0,69110.0,0.71213456]
[1770471140451,0.56602645,69139.0,69110.0,0.56584718]
[1770471140956,0.56602645,69139.0,69105.0,0.0002]
[1770471141350,0.56602645,69139.0,69101.0,0.70943297]
[1770471141556,0.56602645,69139.0,69106.0,0.57167319]
[1770471141958,0.56602645,69139.0,69106.0,0.00582601]
[1770471142761,0.56602645,69139.0,69114.0,0.56584718]
[1770471143754,0.56602645,69139.0,69110.0,0.0002]
[1770471144461,0.56602645,69139.0,69106.0,0.57167319]
[1770471145452,0.56602645,69139.0,69107.0,0.0002]
[1770471145649,0.56602645,69139.0,69108.0,0.56584718]
[1770471146259,0.42921052,69155.0,69108.0,0.56584718]
[1770471146450,0.56602645,69148.0,69108.0,0.56584718]
[1770471146648,0.56602645,69148.0,69111.0,0.56604718]
[1770471147251,0.56602645,69163.0,69131.0,0.56584718]
[1770471147562,0.56602645,69176.0,69143.0,0.56584718]
[1770471148362,0.56602645,69176.0,69141.0,0.0002]
[1770471148860,0.56602645,69176.0,69135.0,0.56584718]
[1770471149064,0.56602645,69176.0,69142.0,0.56584718]
[1770471149660,0.56602645,69176.0,69142.0,0.58032518]
[1770471149964,0.56602645,69176.0,69142.0,0.56584718]
[1770471151359,0.56602645,69176.0,69140.0,0.014478]
[1770471151360,0.56602645,69199.0,69157.0,0.56584718]
[1770471151666,0.56602645,69199.0,69161.0,0.56584718]
[1770471152556,0.56602645,69199.0,69163.0,0.56584718]
[1770471155167,0.56602645,69199.0,69148.0,0.56584718]
[1770471156169,0.54292944,69198.0,69148.0,0.56584718]
[1770471156668,0.54292944,69197.0,69148.0,0.56584718]
[1770471157371,0.42921052,69189.0,69143.0,0.0002]
[1770471157663,0.54292944,69188.0,69143.0,0.0002]
[1770471157863,0.54292944,69174.0,69143.0,0.0002]
[1770471158268,0.54292944,69173.0,69143.0,0.0002]
[1770471158466,0.54292944,69173.0,69137.0,0.52928168]
[1770471158666,0.54292944,69171.0,69137.0,0.52928168]
[1770471158971,0.42921052,69170.0,69137.0,0.52928168]
[1770471159169,0.54292944,69169.0,69137.0,0.52928168]
[1770471160067,0.54292944,69169.0,69129.0,0.0002]
[1770471160273,0.54292944,69167.0,69129.0,0.52948168]
[1770471160767,0.54292944,69162.0,69129.0,0.52928168]
[1770471161368,0.54292944,69162.0,69126.0,0.0002]
[1770471161566,0.54292944,69154.0,69126.0,0.0002]
[1770471161766,0.54292944,69154.0,69120.0,0.52928168]
[1770471161968,0.42921052,69150.0,69120.0,0.52928168]
[1770471162170,0.54292944,69149.0,69111.0,0.52928168]
[1770471162369,0.57069801,69160.0,69111.0,0.52928168]
[1770471162370,0.54292944,69143.0,69111.0,0.52928168]
[1770471162674,0.97213996,69142.0,69111.0,0.52928168]
[1770471163064,0.54292944,69142.0,69111.0,0.52928168]
[1770471163873,0.54292944,69142.0,69108.0,0.0002]
[1770471164069,0.54292944,69142.0,69102.0,0.52928168]
[1770471165371,0.54292944,69142.0,69098.0,0.0002]
[1770471165372,0.54292944,69142.0,69106.0,0.53510769]
[1770471165567,0.54292944,69139.0,69106.0,0.53510769]
[1770471166475,0.54292944,69139.0,69108.0,0.0002]
[1770471167072,0.54292944,69137.0,69108.0,0.0002]
[1770471167468,0.97213996,69137.0,69106.0,0.00582601]
[1770471167666,0.54292944,69136.0,69106.0,0.00582601]
[1770471170181,0.42921052,69138.0,69107.0,0.52928168]
[1770471170379,0.54292944,69137.0,69107.0,0.52928168]
[1770471170978,0.54292944,69137.0,69108.0,0.0002]
[1770471171184,0.54292944,69136.0,69108.0,0.0002]
[1770471171980,0.54292944,69136.0,69107.0,0.52928168]
[1770471172975,0.54292944,69136.0,69107.0,0.52948168]
[1770471175977,0.54292944,69136.0,69113.0,0.52968168]
[1770471176376,0.54292944,69136.0,69107.0,0.0002]
[1770471177280,0.54292944,69136.0,69106.0,0.00582601]
[1770471180082,0.54292944,69119.0,69077.0,0.52928168]
[1770471180285,0.54292944,69119.0,69086.0,0.54377168]
[1770471180586,0.54292944,69131.0,69094.0,0.52928168]
[1770471180788,0.54292944,69129.0,69094.0,0.52928168]
[1770471180982,0.54292944,69129.0,69093.0,0.0002]
[1770471181178,0.54292944,69124.0,69093.0,0.0002]
[1770471181688,0.54292944,69118.0,69086.0,0.0002]
[1770471182078,0.54292944,69115.0,69086.0,0.0002]
[1770471182383,0.54292944,69109.0,69086.0,0.0002]
[1770471182779,0.54292944,69109.0,69081.0,0.0002]
[1770471183878,0.54292944,69109.0,69077.0,0.0002]
[1770471184487,0.54292944,69109.0,69060.0,0.00015059]
[1770471184488,0.54292944,69099.0,69061.0,0.52928168]
[1770471184687,0.42921052,69100.0,69069.0,0.52928168]
[1770471184888,0.54292944,69108.0,69081.0,0.0002]
[1770471185188,0.54292944,69108.0,69078.0,0.52948168]
[1770471186184,0.54292944,69108.0,69086.0,0.0002]
[1770471187489,0.54292944,69108.0,69082.0,0.52944335]
[1770471187991,0.54292944,69108.0,69081.0,0.0002]
[1770471188182,0.54292944,69108.0,69081.0,0.52964335]
[1770471188592,0.54292944,69108.0,69088.0,0.0002]
[1770471188791,0.42921052,69112.0,69088.0,0.52964335]
[1770471188988,0.57858199,69117.0,69088.0,0.52964335]
[1770471188989,1.00779251,69117.0,69088.0,0.52964335]
[1770471189292,0.57858199,69117.0,69088.0,0.52964335]
[1770471189678,0.57858199,69117.0,69093.0,0.52964335]
[1770471189897,0.42921052,69120.0,69093.0,0.52424979]
[1770471190185,0.57666512,69126.0,69100.0,0.5369951]
[1770471190785,0.42921052,69131.0,69108.0,0.5373951]
[1770471190982,0.42921052,69134.0,69108.0,0.52661535]
[1770471191189,0.42921052,69134.0,69108.0,0.51581537]
[1770471191390,0.42921052,69138.0,69108.0,0.51581537]
[1770471191893,0.42921052,69139.0,69115.0,0.5369951]
[1770471192392,0.42921052,69140.0,69115.0,0.5369951]
[1770471192981,0.42921052,69142.0,69118.0,0.0002]
[1770471193192,0.42921052,69142.0,69118.0,0.5369951]
[1770471193495,0.42921052,69143.0,69118.0,0.5369951]
[1770471193889,1.00587564,69143.0,69118.0,0.5369951]
[1770471194089,1.00587564,69143.0,69118.0,0.5367951]
[1770471194389,0.42921052,69142.0,69118.0,0.5367951]
[1770471194590,0.42921052,69138.0,69118.0,0.5367951]
[1770471195190,0.42921052,69138.0,69118.0,0.5369951]
[1770471195394,0.42921052,69140.0,69118.0,0.5369951]
[1770471195895,0.42921052,69141.0,69118.0,0.5369951]
[1770471196283,0.42921052,69143.0,69120.0,0.5367951]
[1770471196697,0.42921052,69150.0,69120.0,0.5367951]
[1770471197001,0.42921052,69152.0,69120.0,0.5367951]
[1770471197407,0.42921052,69153.0,69126.0,0.5367951]
[1770471198002,0.57666512,69152.0,69126.0,0.5367951]
[1770471198195,0.57666512,69151.0,69126.0,0.5367951]
[1770471203096,0.42921052,69149.0,69126.0,0.5367951]
[1770471204204,0.42921052,69150.0,69126.0,0.5369951]
[1770471204397,1.00587564,69150.0,69126.0,0.5369951]
[1770471204597,0.42921052,69149.0,69126.0,0.5369951]
[1770471204799,0.57666512,69148.0,69126.0,0.0002]
[1770471205311,0.57666512,69148.0,69118.0,0.5367951]
[1770471206401,0.57666512,69148.0,69122.0,0.5367951]
[1770471206606,0.42921052,69144.0,69122.0,0.5367951]
[1770471207508,0.57666512,69142.0,69123.0,0.0002]
[1770471207810,1.00587564,69142.0,69123.0,0.0002]
[1770471208110,0.57666512,69141.0,69114.0,0.5367951]
[1770471208408,0.42921052,69137.0,69116.0,0.0002]
[1770471208604,0.42921052,69137.0,69114.0,0.5367951]
[1770471209712,0.42921052,69137.0,69117.0,0.5367951]
[1770471210807,0.42921052,69137.0,69117.0,0.5369951]
[1770471211013,0.57666512,69136.0,69117.0,0.0002]
[1770471211609,1.00587564,69135.0,69110.0,0.0002]
[1770471211809,1.00587564,69135.0,69109.0,0.5367951]
[1770471212008,0.57666512,69133.0,69109.0,0.5367951]
[1770471212415,1.00587564,69131.0,69109.0,0.5367951]
[1770471212712,0.57666512,69129.0,69105.0,0.0002]
[1770471212915,0.57666512,69129.0,69102.0,0.5369951]
[1770471213911,1.00587564,69129.0,69102.0,0.5369951]
[1770471214112,0.57666512,69128.0,69106.0,0.0002]
[1770471214315,1.00587564,69128.0,69106.0,0.0002]
[1770471214513,0.57666512,69127.0,69106.0,0.0002]
[1770471214712,0.57666512,69127.0,69106.0,0.5369951]
[1770471214913,0.42921052,69128.0,69106.0,0.5369951]
[1770471215110,0.42921052,69132.0,69112.0,0.5367951]
[1770471215618,0.42921052,69133.0,69112.0,0.5367951]
[1770471216313,0.42921052,69132.0,69115.0,0.0002]
[1770471216617,0.42921052,69132.0,69116.0,0.54378994]
[1770471216815,0.43011754,69134.0,69116.0,0.54378994]
[1770471217118,0.2007,69143.0,69116.0,0.54378994]
[1770471219817,0.2007,69143.0,69116.0,0.54398994]
[1770471220013,0.55376233,69149.0,69116.0,0.54398994]
[1770471220810,0.55376233,69149.0,69116.0,0.54378994]
[1770471222410,0.2007,69159.0,69116.0,0.54378994]
[1770471222411,0.55376233,69144.0,69116.0,0.54378994]
[1770471224417,0.57069801,69145.0,69112.0,0.0002]
[1770471224418,0.57069801,69145.0,69123.0,0.54378994]
[1770471224813,0.55376233,69153.0,69123.0,0.54378994]
[1770471225717,0.55376233,69153.0,69118.0,0.0002]
[1770471226021,0.55376233,69153.0,69118.0,0.54398994]
[1770471226520,0.55376233,69149.0,69116.0,0.54398994]
[1770471227324,0.55376233,69148.0,69116.0,0.54398994]
[1770471227522,0.55376233,69148.0,69116.0,0.54378994]
[1770471232025,0.55376233,69146.0,69116.0,0.54378994]
[1770471234529,1.12446034,69146.0,69116.0,0.54378994]
[1770471235126,0.55376233,69145.0,69116.0,0.54378994]
[1770471235332,0.55376233,69144.0,69116.0,0.54378994]
[1770471236130,0.55376233,69140.0,69116.0,0.54378994]
[1770471238231,0.55376233,69140.0,69111.0,0.0002]
[1770471238529,0.55376233,69137.0,69108.0,0.54378994]
[1770471238720,0.55376233,69137.0,69099.0,0.014687]
[1770471238721,0.55376233,69137.0,69100.0,0.54378994]
[1770471239324,0.55376233,69134.0,69100.0,0.54378994]
[1770471239635,0.55376233,69134.0,69104.0,0.54378994]
[1770471240133,0.71896213,69143.0,69115.0,0.54378994]
[1770471240429,0.57069801,69160.0,69116.0,0.014484]
[1770471240736,0.57069801,69174.0,69142.0,0.14704725]
[1770471240927,0.57069801,69174.0,69142.0,0.16152525]
[1770471241128,0.57069801,69174.0,69144.0,0.014478]
[1770471241525,0.57069801,69174.0,69142.0,0.14704725]
[1770471241526,0.58333333,69184.0,69142.0,0.14704725]
[1770471242328,0.57453077,69182.0,69142.0,0.14704725]
[1770471242528,1.1578641,69182.0,69142.0,0.14704725]
[1770471242837,1.1578641,69182.0,69143.0,0.014478]
[1770471243030,0.58333333,69181.0,69142.0,0.14704725]
[1770471243231,0.58333333,69181.0,69142.0,0.14804725]
[1770471243433,0.57453077,69184.0,69157.0,0.014475]
[1770471243629,0.57453077,69184.0,69148.0,0.014477]